bitfinex/quotes_BTCUSD_20250423
["timestamp","ask_amount","ask_price","bid_price","bid_amount"]
[1745383626620,0.0111861,93283.0,93268.0,0.60443581]
[1745383626831,0.11224,93269.0,93268.0,0.50130499]
[1745383627030,0.001,93269.0,93259.0,0.202539]
[1745383627241,0.11124,93268.0,93266.0,0.22516047]
[1745383627359,0.11124,93268.0,93266.0,0.00214411]
[1745383627560,0.001,93269.0,93254.0,0.22519058]
[1745383627561,0.001,93269.0,93262.0,0.01454085]
[1745383627760,0.11564,93268.0,93263.0,0.00214393]
[1745383627955,0.11564,93268.0,93252.0,0.01072363]
[1745383628222,0.11564,93268.0,93258.0,0.19830491]
[1745383628460,0.11564,93268.0,93252.0,0.01072363]
[1745383628626,0.11564,93268.0,93266.0,0.006]
[1745383629207,0.11564,93268.0,93215.0,0.001]
[1745383629208,0.01072443,93245.0,93232.0,0.01072593]
[1745383629452,0.01072443,93245.0,93197.0,0.001]
[1745383629453,0.001,93268.0,93235.0,0.29769383]
[1745383629669,0.34076122,93267.0,93258.0,0.006]
[1745383629889,0.01072259,93261.0,93258.0,0.006]
[1745383630110,0.21445421,93260.0,93258.0,0.006]
[1745383630753,0.01072202,93266.0,93238.0,0.35072524]
[1745383630754,0.01072351,93253.0,93240.0,0.29769383]
[1745383631208,0.1156,93252.0,93245.0,0.21448871]
[1745383631398,0.1156,93252.0,93247.0,0.21448411]
[1745383631597,0.1156,93252.0,93244.0,0.01072455]
[1745383631797,0.1156,93252.0,93245.0,0.22521314]
[1745383631999,0.1156,93252.0,93236.0,0.22523466]
[1745383632203,0.1156,93251.0,93240.0,0.01072501]
[1745383632400,0.1156,93251.0,93241.0,0.01072489]
[1745383632573,0.1156,93251.0,93240.0,0.01072501]
[1745383633207,0.1156,93251.0,93237.0,0.01072535]
[1745383633208,0.1086,93251.0,93248.0,0.22520584]
[1745383633401,0.1086,93251.0,93243.0,0.01072466]
[1745383633402,0.1086,93251.0,93240.0,0.01072501]
[1745383633521,0.1086,93251.0,93220.0,0.29769383]
[1745383633522,0.01072558,93235.0,93221.0,0.01072719]
[1745383633722,0.01072639,93228.0,93213.0,0.22528982]
[1745383633930,0.35384,93227.0,93223.0,0.21453926]
[1745383634123,0.35384,93227.0,93218.0,0.01072754]
[1745383634124,0.35384,93227.0,93221.0,0.01072719]
[1745383634355,0.35384,93227.0,93217.0,0.01072765]
[1745383634556,0.35384,93227.0,93219.0,0.01072742]
[1745383634977,0.11552,93226.0,93220.0,0.01072731]
[1745383635503,0.11552,93226.0,93221.0,0.01072719]
[1745383635670,0.11552,93226.0,93218.0,0.35072754]
[1745383635671,0.11552,93226.0,93218.0,0.01072754]
[1745383635897,0.11552,93226.0,93219.0,0.01072742]
[1745383636444,0.11552,93226.0,93223.0,0.01072696]
[1745383637365,0.31443965,93227.0,93224.0,0.01072685]
[1745383637626,0.31443965,93227.0,93226.0,0.55453242]
[1745383637824,0.23850428,93227.0,93226.0,0.34]
[1745383638443,0.01072719,93221.0,93202.0,0.21458746]
[1745383638650,0.01072719,93221.0,93211.0,0.35072834]
[1745383638859,0.01072719,93221.0,93211.0,0.34]
[1745383639062,0.46232733,93227.0,93217.0,0.01072765]
[1745383639382,0.35402428,93227.0,93221.0,0.01072719]
[1745383639581,0.35402428,93227.0,93222.0,0.01072708]
[1745383639781,0.35402428,93227.0,93221.0,0.01072719]
[1745383639979,0.35402428,93227.0,93222.0,0.01072708]
[1745383640190,0.35402428,93227.0,93224.0,0.01072685]
[1745383640394,0.23850428,93227.0,93226.0,0.34]
[1745383640682,0.23150428,93227.0,93226.0,0.34]
[1745383641244,0.15557009,93227.0,93226.0,0.34]
[1745383641853,0.07963908,93227.0,93226.0,0.34]
[1745383642510,0.07963908,93227.0,93226.0,0.44830305]
[1745383642909,0.07963908,93227.0,93226.0,0.34]
[1745383647647,0.07428249,93227.0,93226.0,0.34]
[1745383647864,0.11387293,93234.0,93231.0,0.01072604]
[1745383648092,0.11401334,93234.0,93231.0,0.01072604]
[1745383648324,0.10701334,93234.0,93231.0,0.01072604]
[1745383648983,0.10701334,93234.0,93233.0,0.34]
[1745383649207,0.11562041,93234.0,93233.0,0.34]
[1745383649882,0.00014041,93234.0,93233.0,0.34]
[1745383650106,0.11562041,93234.0,93233.0,0.34]
[1745383650328,0.10276527,93234.0,93233.0,0.34]
[1745383650561,0.10276527,93234.0,93233.0,0.4628439]
[1745383650787,0.3536,93257.0,93254.0,0.0107234]
[1745383651012,0.35367529,93257.0,93256.0,0.34]
[1745383651237,0.46915529,93257.0,93256.0,0.34]
[1745383652653,0.46915529,93257.0,93252.0,0.34]
[1745383652879,0.46915529,93257.0,93242.0,0.01072478]
[1745383652880,0.2144687,93254.0,93242.0,0.01072478]
[1745383653105,0.01072455,93244.0,93241.0,0.34]
[1745383653342,0.01072455,93244.0,93233.0,0.01072581]
[1745383653571,0.22521537,93245.0,93233.0,0.01072581]
[1745383653820,0.01072443,93245.0,93237.0,0.01072535]
[1745383654044,0.14928195,93248.0,93237.0,0.01072535]
[1745383654850,0.01072432,93246.0,93238.0,0.01072524]
[1745383655072,0.11548,93249.0,93243.0,0.01072466]
[1745383655263,0.11548,93249.0,93246.0,0.01072432]
[1745383655496,0.11548,93253.0,93246.0,0.01072432]
[1745383655766,0.11548,93253.0,93247.0,0.0107242]
[1745383655929,0.10848,93253.0,93247.0,0.0107242]
[1745383656141,0.10848,93253.0,93250.0,0.01072386]
[1745383656341,0.10848,93253.0,93248.0,0.22520466]
[1745383656584,0.10848,93253.0,93251.0,0.34]
[1745383656789,0.35367529,93257.0,93256.0,0.21446341]
[1745383657194,0.0004249,93265.0,93264.0,0.56898586]
[1745383657410,0.0004249,93265.0,93264.0,0.34]
[1745383657795,0.0004249,93265.0,93264.0,0.44830305]
[1745383657976,0.0004249,93265.0,93264.0,0.47419093]
[1745383658745,0.0004249,93265.0,93264.0,0.50236964]
[1745383658876,0.0004249,93265.0,93264.0,0.53034239]
[1745383659301,0.0004249,93265.0,93264.0,0.45965008]
[1745383659504,0.0004249,93265.0,93264.0,0.48762283]
[1745383659940,7e-05,93272.0,93271.0,0.55442892]
[1745383660138,7e-05,93272.0,93271.0,0.58240167]
[1745383660572,0.04043874,93289.0,93283.0,0.01072006]
[1745383660753,0.04057891,93289.0,93282.0,0.01072018]
[1745383660920,0.04057891,93289.0,93284.0,0.02797275]
[1745383661452,0.04057891,93289.0,93263.0,0.21444556]
[1745383661453,0.01072144,93271.0,93260.0,0.01072271]
[1745383661676,0.21442716,93272.0,93260.0,0.01072271]
[1745383661677,0.01072133,93272.0,93262.0,0.01072248]
[1745383661879,0.0107211,93274.0,93265.0,0.01072213]
[1745383662015,0.01072087,93276.0,93268.0,0.01072179]
[1745383662215,0.01072018,93282.0,93270.0,0.35072156]
[1745383662416,0.01072018,93282.0,93258.0,0.21445865]
[1745383662417,0.01072236,93263.0,93251.0,0.01072374]
[1745383662634,0.11484,93262.0,93259.0,0.01072282]
[1745383663259,0.11484,93262.0,93257.0,0.01981804]
[1745383663463,0.11484,93262.0,93257.0,0.35981804]
[1745383663665,0.11484,93262.0,93259.0,0.01072282]
[1745383663919,0.01072271,93260.0,93257.0,0.00909499]
[1745383664129,0.10784,93262.0,93254.0,0.0107234]
[1745383664353,0.10784,93262.0,93256.0,0.35072317]
[1745383664552,0.10784,93262.0,93259.0,0.01072282]
[1745383664752,0.10784,93262.0,93260.0,0.34]
[1745383664995,0.10784,93262.0,93258.0,0.56517997]
[1745383665179,0.10784,93262.0,93260.0,0.21445421]
[1745383666176,0.10784,93262.0,93256.0,0.35072317]
[1745383666397,0.10784,93262.0,93259.0,0.01072282]
[1745383666700,0.03193404,93262.0,93258.0,0.34]
[1745383666855,0.03193404,93262.0,93259.0,0.01072282]
[1745383667891,0.03193404,93262.0,93260.0,0.34]
[1745383668996,0.03193404,93262.0,93259.0,0.01072282]
[1745383669269,0.03193404,93262.0,93260.0,0.34]
[1745383669491,0.03193404,93262.0,93261.0,0.21445191]
[1745383669695,0.03193404,93262.0,93260.0,0.34]
[1745383670844,0.03193404,93262.0,93259.0,0.01072282]
[1745383671785,0.03193404,93262.0,93254.0,0.00905128]
[1745383671944,0.21446341,93256.0,93254.0,0.00905128]
[1745383672146,0.22517732,93260.0,93247.0,0.0107242]
[1745383672344,0.00455036,93255.0,93247.0,0.0107242]
[1745383672558,0.11484,93254.0,93247.0,0.0107242]
[1745383672735,0.11484,93254.0,93248.0,0.35072409]
[1745383672736,0.11938686,93254.0,93248.0,0.35072409]
[1745383672932,0.11484,93254.0,93248.0,0.35072409]
[1745383673156,0.11484,93254.0,93251.0,0.01072374]
[1745383673470,0.04346314,93254.0,93249.0,0.01072397]
[1745383674025,0.04346314,93254.0,93250.0,0.01072386]
[1745383674225,0.22516624,93265.0,93249.0,0.01985937]
[1745383674226,0.0456,93266.0,93258.0,0.01072294]
[1745383674505,0.11484,93265.0,93260.0,0.01072271]
[1745383674678,0.11484,93265.0,93259.0,0.01072282]
[1745383675477,0.11484,93265.0,93260.0,0.01072271]
[1745383675690,0.11484,93265.0,93259.0,0.01072282]
[1745383676192,0.11484,93265.0,93257.0,0.01072305]
[1745383676193,0.12556213,93265.0,93257.0,0.01072305]
[1745383676394,0.11484,93264.0,93258.0,0.01072294]
[1745383676587,0.11484,93264.0,93257.0,0.01072305]
[1745383677133,0.11484,93264.0,93258.0,0.01072294]
[1745383677336,0.11484,93264.0,93257.0,0.01072305]
[1745383679114,0.11484,93264.0,93260.0,0.01072271]
[1745383679322,0.11484,93264.0,93259.0,0.01072282]
[1745383679723,0.11484,93264.0,93255.0,0.22518721]
[1745383679933,0.10784,93264.0,93257.0,0.01072305]
[1745383680285,0.10784,93264.0,93255.0,0.22518721]
[1745383680469,0.10784,93264.0,93258.0,0.01072294]
[1745383680621,0.11484,93263.0,93256.0,0.01072317]
[1745383681174,0.11484,93263.0,93255.0,0.22518721]
[1745383681516,0.11484,93263.0,93256.0,0.01072317]
[1745383681695,0.11056,93262.0,93256.0,0.01072317]
[1745383681896,0.11056,93262.0,93255.0,0.01072328]
[1745383682052,0.11056,93262.0,93256.0,0.01072317]
[1745383682255,0.11056,93262.0,93255.0,0.01072328]
[1745383682476,0.11056,93262.0,93256.0,0.01072317]
[1745383682893,0.11056,93262.0,93257.0,0.01072305]
[1745383683101,0.42761427,93303.0,93273.0,0.01072121]
[1745383683102,0.0489,93280.0,93273.0,0.01072121]
[1745383683310,0.0489,93280.0,93270.0,0.01072156]
[1745383683311,0.11056,93283.0,93281.0,0.21440593]
[1745383683619,0.11056,93284.0,93283.0,0.22512139]
[1745383684216,0.11056,93284.0,93283.0,0.01072006]
[1745383685249,0.11056,93284.0,93283.0,0.35072006]
[1745383686027,0.11056,93301.0,93297.0,0.01071845]
[1745383686204,0.11056,93301.0,93299.0,0.34]
[1745383686406,0.0010806,93300.0,93299.0,0.34]
[1745383687374,0.0010806,93300.0,93297.0,0.22508706]
[1745383687510,0.00022868,93300.0,93298.0,0.34]
[1745383687723,0.11056,93301.0,93298.0,0.35071834]
[1745383687923,0.11056,93301.0,93298.0,0.34571834]
[1745383688120,0.21435767,93302.0,93298.0,0.335]
[1745383688353,0.0004242,93303.0,93298.0,0.335]
[1745383688552,0.0004242,93303.0,93300.0,0.01071811]
[1745383688753,0.0004242,93303.0,93301.0,0.21435997]
[1745383689373,0.0004242,93303.0,93301.0,0.20935997]
[1745383689552,0.0004242,93303.0,93297.0,0.01071845]
[1745383689752,0.0004242,93303.0,93300.0,0.22507999]
[1745383689986,0.0004242,93303.0,93302.0,0.55435767]
[1745383690438,0.0004242,93303.0,93302.0,0.60860437]
[1745383690794,0.0004242,93303.0,93302.0,0.58253638]
[1745383691853,0.0004242,93303.0,93302.0,0.69083943]
[1745383691983,0.0004242,93303.0,93302.0,0.71790742]
[1745383692838,0.0004242,93303.0,93302.0,0.73244827]
[1745383693034,0.00014419,93303.0,93302.0,0.73244827]
[1745383694282,0.00014419,93303.0,93302.0,0.73244826]
[1745383695023,0.00014419,93303.0,93302.0,0.46975056]
[1745383695473,0.00014419,93303.0,93302.0,0.68410823]
[1745383697370,0.00014419,93303.0,93302.0,0.62986154]
[1745383697570,0.00014419,93303.0,93302.0,0.001]
[1745383699174,0.32380261,93303.0,93302.0,0.001]
[1745383699561,0.22510066,93292.0,93281.0,0.00610965]
[1745383699692,0.22510066,93292.0,93282.0,0.01072018]
[1745383699693,0.01071926,93290.0,93282.0,0.01072018]
[1745383700268,0.21438583,93290.0,93281.0,0.01072029]
[1745383700468,0.01071937,93289.0,93282.0,0.01072018]
[1745383700630,0.12123914,93291.0,93283.0,0.01072006]
[1745383700968,0.11052,93291.0,93285.0,0.01071983]
[1745383701149,0.12123891,93293.0,93286.0,0.01071972]
[1745383701344,0.01071914,93291.0,93280.0,0.00870746]
[1745383701553,0.22509968,93292.0,93284.0,0.01071995]
[1745383701761,0.01071903,93292.0,93284.0,0.01071995]
[1745383702478,0.11052,93293.0,93285.0,0.01071983]
[1745383702655,0.12123891,93293.0,93282.0,0.01072018]
[1745383702858,0.12123891,93293.0,93285.0,0.01071983]
[1745383703060,0.11052,93293.0,93286.0,0.01071972]
[1745383703643,0.01071914,93291.0,93283.0,0.01072006]
[1745383703985,0.11052,93293.0,93283.0,0.01072006]
[1745383703986,0.11052,93293.0,93290.0,0.01071926]
[1745383704168,0.11052,93293.0,93288.0,0.01071949]
[1745383704340,0.11052,93293.0,93290.0,0.01071926]
[1745383704531,0.11052,93293.0,93290.0,0.22510451]
[1745383704723,0.11052,93293.0,93290.0,0.01071926]
[1745383704982,0.11052,93293.0,93290.0,0.22510395]
[1745383705766,0.11052,93293.0,93290.0,0.01071926]
[1745383706970,0.11052,93293.0,93288.0,0.01071949]
[1745383707171,0.11052,93293.0,93289.0,0.01071937]
[1745383707365,0.11052,93293.0,93290.0,0.01071926]
[1745383707743,0.11052,93293.0,93289.0,0.01071937]
[1745383707946,0.10352,93293.0,93287.0,0.0107196]
[1745383708152,0.10352,93293.0,93290.0,0.01071926]
[1745383708360,0.10352,93293.0,93289.0,0.01071937]
[1745383708565,0.10352,93293.0,93290.0,0.01071926]
[1745383708760,0.10352,93293.0,93286.0,0.22511313]
[1745383708761,0.11423891,93293.0,93282.0,0.01072018]
[1745383708964,0.11423891,93293.0,93283.0,0.01072006]
[1745383709183,0.10352,93293.0,93287.0,0.0107196]
[1745383709951,0.01071926,93290.0,93281.0,0.34]
[1745383710232,0.22510487,93290.0,93280.0,0.01942787]
[1745383710439,0.10352,93293.0,93283.0,0.21440133]
[1745383710631,0.10352,93293.0,93287.0,0.0107196]
[1745383710997,0.11423891,93293.0,93284.0,0.01071995]
[1745383711192,0.10352,93293.0,93287.0,0.0107196]
[1745383711393,0.10352,93293.0,93285.0,0.01071983]
[1745383711615,0.10352,93293.0,93286.0,0.01071972]
[1745383711816,0.01071903,93292.0,93285.0,0.01071983]
[1745383712809,0.01071949,93288.0,93281.0,0.34]
[1745383713006,0.22509989,93292.0,93282.0,0.01072018]
[1745383713439,0.22509989,93292.0,93283.0,0.01072006]
[1745383713861,0.01071914,93291.0,93283.0,0.01072006]
[1745383714070,0.10836,93293.0,93285.0,0.01071983]
[1745383714288,0.11907891,93293.0,93285.0,0.01071983]
[1745383714497,0.01071903,93292.0,93284.0,0.01071995]
[1745383714719,0.01071914,93291.0,93283.0,0.01072006]
[1745383715144,0.10836,93294.0,93288.0,0.01071949]
[1745383715410,0.10836,93294.0,93284.0,0.21439903]
[1745383715411,0.01071903,93292.0,93284.0,0.01071995]
[1745383715635,0.01071903,93292.0,93285.0,0.01071983]
[1745383715854,0.32273645,93294.0,93285.0,0.01071983]
[1745383716660,0.01071891,93293.0,93285.0,0.01071983]
[1745383716916,0.01071891,93293.0,93286.0,0.01071972]
[1745383717068,0.1190788,93294.0,93285.0,0.01071983]
[1745383717274,0.10836,93294.0,93286.0,0.01071972]
[1745383717452,0.10836,93294.0,93288.0,0.01071949]
[1745383717667,0.00836,93294.0,93292.0,0.21437935]
[1745383718665,0.00836,93294.0,93293.0,0.34]
[1745383719697,0.00014419,93303.0,93302.0,0.55435767]
[1745383722330,0.00014419,93303.0,93302.0,0.67720157]
[1745383722683,0.07865586,93327.0,93324.0,0.01071535]
[1745383723122,0.07865586,93327.0,93322.0,0.01071558]
[1745383723533,0.07865586,93327.0,93324.0,0.01071535]
[1745383723731,0.07865586,93327.0,93323.0,0.01071547]
[1745383724088,0.07865586,93327.0,93316.0,0.21432517]
[1745383724288,0.07865586,93327.0,93320.0,0.01071581]
[1745383724468,0.07865586,93327.0,93322.0,0.01071558]
[1745383724680,0.07865586,93327.0,93321.0,0.0107157]
[1745383724911,0.01113979,93328.0,93320.0,0.01071581]
[1745383725207,0.00089202,93328.0,93323.0,0.01071547]
[1745383725440,0.01160691,93328.0,93320.0,0.01071581]
[1745383725651,0.00089202,93328.0,93320.0,0.22503167]
[1745383725860,0.00089202,93328.0,93322.0,0.01071558]
[1745383726076,0.10925202,93328.0,93322.0,0.01071558]
[1745383726277,0.01071501,93327.0,93320.0,0.01071581]
[1745383726479,0.01071524,93325.0,93314.0,0.34]
[1745383726684,0.01071535,93324.0,93317.0,0.01071616]
[1745383726890,0.01071535,93324.0,93316.0,0.01071627]
[1745383727060,0.01071524,93325.0,93318.0,0.01071604]
[1745383727307,0.01071501,93327.0,93320.0,0.01071581]
[1745383727529,0.01071512,93326.0,93319.0,0.01071593]
[1745383727722,0.01071535,93324.0,93316.0,0.01071627]
[1745383727865,0.01071524,93325.0,93318.0,0.01071604]
[1745383728128,0.01071524,93325.0,93317.0,0.01071616]
[1745383728328,0.01071512,93326.0,93318.0,0.01071604]
[1745383728718,0.01071524,93325.0,93317.0,0.01071616]
[1745383728941,0.21433661,93312.0,93309.0,0.34]
[1745383729158,0.10381673,93312.0,93309.0,0.34]
[1745383729382,0.01071696,93310.0,93300.0,0.20899552]
[1745383729618,0.10381673,93312.0,93303.0,0.01071776]
[1745383729834,0.31815217,93312.0,93301.0,0.01071799]
[1745383730054,0.31815217,93312.0,93303.0,0.01071776]
[1745383730055,0.10381673,93312.0,93303.0,0.01071776]
[1745383730257,0.01071696,93310.0,93303.0,0.01071776]
[1745383730482,0.01071799,93301.0,93291.0,0.01071914]
[1745383730681,0.01071753,93305.0,93293.0,0.21437835]
[1745383730889,0.01071765,93304.0,93298.0,0.01071834]
[1745383731089,0.01071753,93305.0,93298.0,0.01071834]
[1745383731753,0.01071765,93304.0,93297.0,0.01071845]
[1745383731912,0.01071776,93303.0,93296.0,0.01071857]
[1745383732310,0.01071845,93297.0,93294.0,0.34]
[1745383732736,0.01071834,93298.0,93291.0,0.01071914]
[1745383733153,0.01071845,93297.0,93289.0,0.01071937]
[1745383733353,0.01071834,93298.0,93290.0,0.01071926]
[1745383733566,0.01071834,93298.0,93288.0,0.01071949]
[1745383733567,0.01071868,93295.0,93288.0,0.01071949]
[1745383733794,0.21438295,93291.0,93290.0,0.00014019]
[1745383733942,0.01071891,93293.0,93290.0,0.00014019]
[1745383734555,0.21438295,93291.0,93290.0,0.00014019]
[1745383734950,0.10836,93292.0,93290.0,0.00014019]
[1745383735334,0.32274097,93292.0,93290.0,0.00014019]
[1745383735868,0.10830305,93291.0,93290.0,0.00014019]
[1745383736059,0.10130305,93291.0,93290.0,0.00014019]
[1745383737654,0.10836,93292.0,93290.0,0.00014019]
[1745383737854,0.22508111,93300.0,93290.0,0.01085945]
[1745383738074,0.10836,93291.0,93290.0,0.00014019]
[1745383743818,0.10136,93291.0,93290.0,0.00014019]
[1745383749110,0.31574295,93291.0,93290.0,0.00014019]
[1745383749344,0.515946,93291.0,93290.0,0.00014019]
[1745383751294,0.10532,93291.0,93290.0,0.00014019]
[1745383751492,0.31270295,93291.0,93290.0,0.00014019]
[1745383752513,0.09832,93291.0,93290.0,0.00014019]
[1745383752919,0.42271891,93293.0,93291.0,0.21438295]
[1745383752920,0.10532,93292.0,93291.0,0.21438295]
[1745383753397,0.412,93293.0,93291.0,0.21438295]
[1745383753398,0.412,93293.0,93292.0,0.34]
[1745383755056,0.10532,93298.0,93295.0,0.01071868]
[1745383755879,0.10532,93298.0,93296.0,0.21437146]
[1745383759415,0.09832,93298.0,93296.0,0.21437146]
[1745383762273,0.412,93309.0,93308.0,0.21434389]
[1745383762705,0.412,93309.0,93305.0,0.01071753]
[1745383762904,0.412,93309.0,93306.0,0.01071742]
[1745383763596,0.412,93309.0,93306.0,0.22506531]
[1745383763800,0.51732,93312.0,93311.0,0.214337]
[1745383764116,0.51732,93312.0,93309.0,0.22505816]
[1745383766876,0.51032,93312.0,93309.0,0.22505816]
[1745383767598,0.51032,93312.0,93311.0,0.214337]
[1745383768101,0.412,93312.0,93311.0,0.554337]
[1745383769773,0.11641979,93328.0,93322.0,0.01071558]
[1745383770309,0.11641979,93328.0,93316.0,0.01071627]
[1745383770310,0.01071535,93324.0,93312.0,0.35071673]
[1745383770508,0.0107157,93321.0,93312.0,0.34]
[1745383770725,0.01071558,93322.0,93315.0,0.01071639]
[1745383770853,0.0107157,93321.0,93315.0,0.01071639]
[1745383771052,0.0111827,93322.0,93316.0,0.01071627]
[1745383771481,0.01071581,93320.0,93314.0,0.3507165]
[1745383771703,0.0107157,93321.0,93314.0,0.34]
[1745383771904,0.0111827,93322.0,93315.0,0.01071639]
[1745383772151,0.0111827,93322.0,93316.0,0.01071627]
[1745383773638,0.00046712,93322.0,93316.0,0.01071627]
[1745383773981,0.0111827,93322.0,93313.0,0.01071662]
[1745383774281,0.01071616,93317.0,93312.0,0.34]
[1745383774483,0.22503967,93317.0,93312.0,0.34]
[1745383774777,0.21432351,93317.0,93312.0,0.34]
[1745383774981,0.22503967,93317.0,93312.0,0.34]
[1745383775212,0.01071627,93316.0,93309.0,0.01071707]
[1745383775529,0.01071639,93315.0,93308.0,0.34]
[1745383775729,0.01071639,93315.0,93308.0,0.35071719]
[1745383775924,0.01071627,93316.0,93309.0,0.01071707]
[1745383776212,0.01071685,93311.0,93308.0,0.34]
[1745383776420,0.22507137,93304.0,93301.0,0.34]
[1745383776604,0.22506151,93308.0,93301.0,0.34]
[1745383776804,0.0107173,93307.0,93301.0,0.34]
[1745383777021,0.01071719,93308.0,93301.0,0.35071799]
[1745383777386,0.0107173,93307.0,93301.0,0.34]
[1745383777785,0.01071742,93306.0,93301.0,0.34]
[1745383778025,0.01071788,93302.0,93293.0,0.01071891]
[1745383778225,0.01071776,93303.0,93297.0,0.34]
[1745383778667,0.22507429,93303.0,93297.0,0.34]
[1745383778832,0.22508038,93300.0,93297.0,0.34]
[1745383779032,0.01071799,93301.0,93297.0,0.34]
[1745383779232,0.01071845,93297.0,93291.0,0.34]
[1745383779416,0.01071822,93299.0,93291.0,0.35071914]
[1745383779614,0.0107188,93294.0,93291.0,0.34]
[1745383779839,0.01071811,93300.0,93294.0,0.0107188]
[1745383780235,0.01071822,93299.0,93293.0,0.01071891]
[1745383780642,0.01071788,93302.0,93294.0,0.0107188]
[1745383780856,0.42271788,93302.0,93294.0,0.0107188]
[1745383781064,0.01071799,93301.0,93295.0,0.01071868]
[1745383781829,0.42271788,93302.0,93295.0,0.01071868]
[1745383782232,0.42271788,93302.0,93296.0,0.01071857]
[1745383782535,0.01071811,93300.0,93294.0,0.0107188]
[1745383782734,0.412,93302.0,93299.0,0.01071822]
[1745383782935,0.412,93302.0,93300.0,0.21436227]
[1745383784395,0.10388,93305.0,93303.0,0.01071776]
[1745383784572,0.10388,93305.0,93302.0,0.01071788]
[1745383786805,0.10388,93305.0,93302.0,0.22507544]
[1745383790097,0.09688,93305.0,93304.0,0.21435308]
[1745383790786,0.09688,93305.0,93302.0,0.22507326]
[1745383790956,0.09688,93305.0,93303.0,0.21435309]
[1745383794896,0.09688,93305.0,93303.0,0.21369283]
[1745383795457,0.412,93309.0,93306.0,0.22506479]
[1745383795916,0.412,93309.0,93304.0,0.01071765]
[1745383796131,0.01071662,93313.0,93305.0,0.01071753]
[1745383796283,0.01071662,93313.0,93306.0,0.01071742]
[1745383796680,0.21434835,93307.0,93297.0,0.01071845]
[1745383796884,0.01071742,93306.0,93297.0,0.20899586]
[1745383797090,0.01071765,93304.0,93298.0,0.01071834]
[1745383797822,0.01071811,93300.0,93290.0,0.19827741]
[1745383797973,0.01071834,93298.0,93291.0,0.34]
[1745383798172,0.01071834,93298.0,93291.0,0.35071914]
[1745383798616,0.01071811,93300.0,93292.0,0.01071903]
[1745383798817,0.22508278,93299.0,93291.0,0.35071914]
[1745383799039,0.01071845,93297.0,93291.0,0.34]
[1745383799242,0.01071845,93297.0,93291.0,0.35071914]
[1745383799479,0.01071845,93297.0,93291.0,0.34]
[1745383799710,0.01071845,93297.0,93291.0,0.35071914]
[1745383799918,0.01071834,93298.0,93292.0,0.01071903]
[1745383800054,0.01071834,93298.0,93291.0,0.35071914]
[1745383800394,0.01071845,93297.0,93291.0,0.34]
[1745383800696,0.01071834,93298.0,93291.0,0.34]
[1745383800933,0.01071822,93299.0,93292.0,0.01071903]
[1745383801060,0.01071834,93298.0,93292.0,0.01071903]
[1745383801262,0.01071834,93298.0,93291.0,0.34]
[1745383801263,0.0107188,93294.0,93291.0,0.34]
[1745383801487,0.01071845,93297.0,93291.0,0.35071914]
[1745383802065,0.01071857,93296.0,93291.0,0.34]
[1745383802271,0.01071834,93298.0,93291.0,0.35071914]
[1745383802590,0.01071834,93298.0,93292.0,0.01071903]
[1745383802800,0.412,93299.0,93292.0,0.01071903]
[1745383802999,0.412,93299.0,93297.0,0.34]
[1745383803202,0.412,93299.0,93298.0,0.21436686]
[1745383804363,0.412,93299.0,93298.0,0.55436686]
[1745383805556,0.405,93299.0,93298.0,0.55436686]
[1745383807884,0.10132,93303.0,93302.0,0.55435767]
[1745383808497,0.10132,93303.0,93302.0,0.34]
[1745383812432,0.10132,93303.0,93300.0,0.22507946]
[1745383813286,0.09432,93303.0,93300.0,0.22507946]
[1745383813933,0.09432,93303.0,93296.0,0.01071857]
[1745383814112,0.09432,93303.0,93302.0,0.21435767]
[1745383814463,0.405,93318.0,93311.0,0.22505282]
[1745383814464,0.10132,93312.0,93311.0,0.22505282]
[1745383818147,0.0004249,93328.0,93318.0,0.01071604]
[1745383818350,0.0004249,93328.0,93327.0,0.21430025]
[1745383818596,0.0004249,93328.0,93325.0,0.2250184]
[1745383819496,0.00089202,93328.0,93325.0,0.2250184]
[1745383819696,0.00089202,93328.0,93326.0,0.21430255]
[1745383821208,0.01026182,93331.0,93328.0,0.22501216]
[1745383821405,0.01032187,93331.0,93327.0,0.01071501]
[1745383821573,0.01032187,93331.0,93326.0,0.01071512]
[1745383821771,0.01032187,93331.0,93327.0,0.01071501]
[1745383822116,0.01032187,93331.0,93328.0,0.22501212]
[1745383823200,0.01032187,93331.0,93327.0,0.01071501]
[1745383823455,0.01032187,93331.0,93328.0,0.22501233]
[1745383823684,0.01032187,93331.0,93326.0,0.01071512]
[1745383823884,0.01032187,93331.0,93328.0,0.01071489]
[1745383824347,0.10128,93330.0,93328.0,0.01071489]
[1745383824856,0.10128,93330.0,93322.0,0.22502521]
[1745383825026,0.10128,93330.0,93327.0,0.01071501]
[1745383825448,0.01071501,93327.0,93321.0,0.0107157]
[1745383825672,0.01071501,93327.0,93320.0,0.01071581]
[1745383825875,0.01071501,93327.0,93320.0,0.02017274]
[1745383826073,0.01071524,93325.0,93320.0,0.02017274]
[1745383826300,0.01071501,93327.0,93321.0,0.0107157]
[1745383826457,0.01071501,93327.0,93322.0,0.01071558]
[1745383826658,0.01071501,93327.0,93321.0,0.0107157]
[1745383826860,0.01071501,93327.0,93322.0,0.01071558]
[1745383829059,0.01071489,93328.0,93322.0,0.01071558]
[1745383829187,0.10128,93330.0,93327.0,0.01071501]
[1745383829393,0.10128,93330.0,93328.0,0.21429795]
[1745383829648,0.405,93332.0,93328.0,0.22501284]
[1745383830950,0.405,93332.0,93330.0,0.21429336]
[1745383831153,0.02047414,93331.0,93330.0,0.21429336]
[1745383832015,0.02047414,93331.0,93328.0,0.01071489]
[1745383832263,0.02047414,93331.0,93328.0,0.22501178]
[1745383836622,0.01347414,93331.0,93328.0,0.22501178]
[1745383837019,0.01347414,93331.0,93330.0,0.55429336]
[1745383837250,0.00332187,93331.0,93330.0,0.55429336]
[1745383837676,0.00332187,93331.0,93330.0,0.66259641]
[1745383839621,0.00332187,93331.0,93330.0,0.66359641]
[1745383840022,0.00332187,93331.0,93330.0,0.70969641]
[1745383841467,0.00332187,93331.0,93330.0,0.001]
[1745383841891,0.01244677,93331.0,93330.0,0.001]
[1745383842092,0.00332187,93331.0,93330.0,0.10830305]
[1745383844123,0.01071512,93326.0,93313.0,0.01071662]
[1745383844335,0.00332187,93331.0,93305.0,0.0461]
[1745383844336,0.01071478,93329.0,93321.0,0.0107157]
[1745383844538,0.00332187,93331.0,93320.0,0.02030025]
[1745383844862,0.22832787,93331.0,93322.0,0.01071558]
[1745383845057,0.21761332,93331.0,93323.0,0.01071547]
[1745383845261,0.01979467,93330.0,93323.0,0.01071547]
[1745383846194,0.00908001,93330.0,93324.0,0.01071535]